bitfinex/quotes_ETHUSD_20240614
["timestamp","ask_amount","ask_price","bid_price","bid_amount"]
[1718331120733,4.55120245,3488.5,3487.4,2.62376577]
[1718331121053,4.55120245,3488.5,3487.6,2.4837]
[1718331121054,3.0,3488.5,3487.6,2.4837]
[1718331122249,3.49572706,3488.5,3487.6,2.4837]
[1718331122434,3.0,3488.5,3487.6,2.4837]
[1718331123465,3.49575301,3488.5,3487.6,2.4837]
[1718331123633,1.30471013,3488.4,3487.6,2.4837]
[1718331123835,4.30471013,3488.4,3487.6,2.4837]
[1718331124344,1.30471013,3488.4,3487.6,2.4837]
[1718331126664,3.49575469,3488.5,3487.6,2.4837]
[1718331126960,0.671,3488.2,3487.6,2.4837]
[1718331127170,3.49575469,3488.5,3487.6,2.4837]
[1718331127375,3.49575469,3488.5,3487.8,2.433]
[1718331127376,0.49575469,3488.5,3487.8,2.433]
[1718331127535,7.0536483,3488.6,3487.9,0.26356296]
[1718331127536,7.7246483,3488.6,3487.9,0.26356296]
[1718331128771,0.671,3488.2,3487.3,2.3752]
[1718331128972,2.80123923,3488.5,3487.3,2.3752]
[1718331129146,3.73715406,3488.5,3487.4,0.38293607]
[1718331129476,5.52934681,3488.5,3487.4,0.23752]
[1718331129863,1.79219275,3488.4,3487.4,0.23752]
[1718331130073,1.79219275,3488.3,3487.3,2.3752]
[1718331130391,1.79219275,3488.2,3487.3,2.3752]
[1718331130690,5.28793198,3488.2,3487.3,2.3752]
[1718331131344,1.79219275,3488.1,3487.3,2.3752]
[1718331131545,2.62543046,3488.1,3487.3,2.3752]
[1718331131778,4.0588756,3488.1,3487.3,2.3752]
[1718331131995,1.79219275,3487.8,3487.0,2.3009]
[1718331133478,5.85293923,3488.0,3487.0,2.3009]
[1718331133479,1.79219275,3487.7,3487.0,2.3009]
[1718331133864,1.79219275,3487.8,3487.0,2.3009]
[1718331134242,4.79219275,3487.8,3487.0,2.3009]
[1718331134443,3.0,3487.8,3487.0,2.3009]
[1718331134664,4.79219275,3487.8,3487.0,2.3009]
[1718331134978,1.79219275,3487.7,3487.0,2.3009]
[1718331135187,3.0,3487.7,3487.0,2.3009]
[1718331135354,4.79219275,3487.8,3487.0,2.3009]
[1718331135558,1.79219275,3487.7,3487.0,2.3009]
[1718331135743,4.79219275,3487.7,3487.0,2.3009]
[1718331135939,3.0,3487.7,3487.0,2.3009]
[1718331137871,4.80332197,3487.7,3487.0,2.3009]
[1718331138684,1.80332197,3487.6,3487.0,2.3009]
[1718331139178,4.80332197,3487.7,3487.0,2.3009]
[1718331139385,6.29161858,3487.7,3487.0,2.3009]
[1718331141310,1.80332197,3487.6,3487.0,2.3009]
[1718331144301,6.29161858,3487.7,3487.0,2.3009]
[1718331144699,1.80332197,3487.6,3487.0,2.3009]
[1718331145100,7.72506372,3487.7,3487.0,2.3009]
[1718331145315,0.93360637,3487.6,3487.0,2.3009]
[1718331148118,1.43344514,3487.5,3486.2,2.4243]
[1718331148292,1.43344514,3487.5,3487.1,0.14614957]
[1718331148476,2.459,3487.4,3486.5,2.4243]
[1718331148683,2.46412185,3487.3,3486.5,2.4243]
[1718331149096,7.26744382,3487.3,3486.5,2.4243]
[1718331149509,5.46412185,3487.3,3486.5,2.4243]
[1718331150090,7.26744382,3487.3,3486.5,2.4243]
[1718331150292,5.46412185,3487.3,3485.4,2.4243]
[1718331150505,1.13374438,3487.2,3486.6,0.14648586]
[1718331150722,1.43344514,3487.1,3486.5,2.4243]
[1718331151021,0.672,3486.7,3486.5,2.4243]
[1718331151408,0.672,3486.9,3486.5,2.4243]
[1718331153131,3.0,3487.3,3486.5,2.66673]
[1718331153427,0.672,3487.0,3486.6,0.14660989]
[1718331153928,0.672,3487.0,3486.7,0.14656743]
[1718331154145,0.672,3487.0,3486.5,2.4243]
[1718331154295,0.672,3487.0,3486.5,2.66673]
[1718331154700,0.672,3487.0,3486.6,0.14660989]
[1718331163220,0.672,3486.8,3486.6,0.14660989]
[1718331163741,0.672,3486.8,3486.1,2.3295]
[1718331164040,0.672,3486.6,3486.2,0.14683488]
[1718331165643,1.92940947,3487.0,3486.2,0.14683488]
[1718331165944,0.672,3486.5,3486.1,2.3295]
[1718331168551,0.672,3486.3,3486.1,2.3295]
[1718331170124,0.672,3486.3,3485.4,0.672]
[1718331170330,0.672,3486.1,3485.5,2.4813]
[1718331170554,0.672,3486.1,3485.6,0.14735163]
[1718331170739,0.672,3486.1,3485.5,2.4813]
[1718331170916,0.672,3486.1,3485.6,0.14748487]
[1718331171255,0.672,3486.1,3485.5,2.4813]
[1718331171547,0.672,3486.1,3485.6,0.39561487]
[1718331172419,0.672,3486.3,3485.6,0.39561487]
[1718331172819,0.672,3486.3,3485.6,0.24813]
[1718331174151,0.672,3486.1,3485.5,2.4813]
[1718331174514,0.672,3486.1,3485.6,0.14748487]
[1718331174717,0.672,3486.1,3485.5,2.4813]
[1718331174917,0.672,3486.1,3485.6,0.14748487]
[1718331175138,0.672,3486.1,3485.5,2.4813]
[1718331175343,0.672,3486.1,3485.6,0.14748487]
[1718331175553,0.672,3486.1,3485.5,2.4813]
[1718331175756,0.672,3486.1,3485.6,0.14748487]
[1718331176066,0.672,3486.1,3485.5,2.4813]
[1718331176365,0.672,3486.1,3485.6,0.14748487]
[1718331176663,0.672,3486.1,3485.5,2.4813]
[1718331176830,0.672,3486.1,3485.7,0.14744239]
[1718331177031,0.672,3486.1,3485.6,0.14748487]
[1718331177265,0.672,3486.1,3485.8,0.14739991]
[1718331177569,0.672,3486.1,3485.5,2.4813]
[1718331177889,0.672,3486.1,3485.6,0.14748487]
[1718331178092,0.672,3485.7,3485.6,0.14748487]
[1718331178236,0.672,3485.7,3485.2,2.4132]
[1718331178438,3.83704514,3486.0,3485.6,0.14762733]
[1718331178775,0.672,3485.6,3485.2,2.4132]
[1718331178973,0.672,3485.6,3485.3,0.1477548]
[1718331179173,0.672,3485.6,3485.2,2.4132]
[1718331180165,7.0536483,3486.1,3485.2,2.4132]
[1718331180166,0.672,3485.9,3485.2,2.4132]
[1718331180393,7.0536483,3486.1,3485.2,2.72172]
[1718331180552,7.0536483,3486.1,3485.3,2.3473]
[1718331180732,7.7256483,3486.1,3485.3,2.3473]
[1718331181166,0.672,3485.9,3485.3,2.3473]
[1718331181373,7.0536483,3486.1,3485.3,2.3473]
[1718331181374,0.672,3485.7,3485.3,2.3473]
[1718331182150,0.672,3485.9,3485.3,2.3473]
[1718331184190,7.0536483,3486.1,3485.4,0.05738153]
[1718331184638,7.0536483,3486.1,3485.3,3.0193]
[1718331184837,7.0536483,3486.1,3485.4,0.30193]
[1718331185776,7.0536483,3486.1,3485.5,2.4208]
[1718331185981,7.7256483,3486.1,3485.5,2.4208]
[1718331186538,0.672,3485.9,3484.7,0.672]
[1718331186739,0.672,3485.9,3484.9,0.672]
[1718331186976,0.672,3485.9,3485.0,2.4208]
[1718331189092,9.4231483,3486.1,3485.0,2.4208]
[1718331189290,0.672,3485.9,3485.0,2.4208]
[1718331195792,0.672,3485.7,3485.0,2.4208]
[1718331198758,0.672,3485.5,3485.0,2.4208]
[1718331200568,4.92955587,3486.0,3485.0,2.4208]
[1718331200756,0.672,3485.5,3485.0,2.4208]
[1718331202492,0.672,3485.5,3484.4,0.672]
[1718331202679,0.672,3485.5,3484.5,2.3849]
[1718331202995,0.672,3485.5,3484.6,0.14861763]
[1718331203294,0.672,3485.3,3484.6,0.14861763]
[1718331205293,0.672,3485.1,3484.6,0.14861763]
[1718331205868,2.46,3485.4,3484.6,0.14861763]
[1718331206075,0.672,3485.2,3484.6,0.14861763]
[1718331206273,0.672,3485.2,3484.5,2.3849]
[1718331209601,3.55470934,3485.4,3484.5,2.3849]
[1718331209602,0.672,3485.0,3484.5,2.3849]
[1718331209833,3.0,3485.3,3484.5,2.3849]
[1718331209964,0.672,3485.0,3484.5,2.3849]
[1718331210362,2.4538,3485.2,3484.0,2.2973]
[1718331210566,0.672,3484.1,3483.2,2.4804]
[1718331210869,0.672,3484.1,3483.4,2.4804]
[1718331211401,0.672,3483.9,3483.4,2.4804]
[1718331211586,0.672,3483.7,3483.4,2.4804]
[1718331212201,3.93234483,3484.3,3483.4,2.4804]
[1718331212379,0.672,3483.8,3483.4,2.4804]
[1718331213203,0.672,3483.6,3483.4,2.4804]
[1718331213890,1.09859931,3484.2,3483.4,2.4804]
[1718331213891,0.672,3483.8,3483.4,2.4804]
[1718331216021,2.3171,3484.1,3483.1,2.2508]
[1718331216225,0.672,3483.5,3483.1,2.2508]
[1718331216715,0.672,3483.5,3483.2,0.15105749]
[1718331217798,0.672,3483.7,3483.2,0.15105749]
[1718331220025,0.672,3483.5,3483.2,0.15105749]
[1718331220395,0.672,3483.3,3483.2,0.15105749]
[1718331220606,0.672,3483.3,3483.1,2.2508]
[1718331220809,0.672,3483.5,3482.8,2.2926]
[1718331221415,0.672,3483.1,3481.9,2.2926]
[1718331221618,0.672,3483.1,3481.6,10.68038563]
[1718331221619,0.672,3483.1,3482.9,0.15123115]
[1718331221816,0.672,3483.1,3482.5,2.2926]
[1718331222020,0.672,3483.1,3483.0,0.1511886]
[1718331222215,7.0536483,3483.5,3482.5,2.2926]
[1718331222423,0.672,3483.1,3483.0,0.1511886]
[1718331222698,0.672,3483.1,3482.5,2.2926]
[1718331223007,0.672,3482.9,3482.6,0.15135881]
[1718331223214,0.672,3482.9,3482.5,2.2926]
[1718331224038,0.672,3482.7,3481.8,0.672]
[1718331224241,7.0536483,3483.1,3481.9,2.4343]
[1718331224440,0.672,3482.9,3482.0,1.12597451]
[1718331224605,7.0536483,3483.1,3482.0,1.12597451]
[1718331224801,0.672,3482.9,3482.0,1.12597451]
[1718331227414,0.672,3482.7,3481.9,2.4343]
[1718331227742,0.672,3482.5,3481.9,2.4343]
[1718331228598,0.672,3482.5,3481.4,0.672]
[1718331228803,0.672,3482.5,3481.5,2.3605]
[1718331229110,0.672,3482.5,3481.6,0.45576188]
[1718331229308,0.672,3482.3,3481.6,0.15251188]
[1718331229517,3.0,3482.6,3481.6,0.15251188]
[1718331229518,0.672,3481.9,3481.6,0.15251188]
[1718331229931,0.672,3481.9,3481.7,0.15265811]
[1718331230207,0.672,3481.8,3481.0,2.4444]
[1718331230406,2.2891,3482.5,3481.1,0.15291363]
[1718331230407,3.0,3482.4,3481.1,0.15291363]
[1718331230643,1.43344514,3482.3,3481.0,2.4444]
[1718331232042,2.2891,3482.2,3480.3,2.4444]
[1718331232403,3.0,3482.2,3480.5,2.4444]
[1718331232550,7.0536483,3482.6,3481.0,1.617]
[1718331232773,7.0536483,3482.6,3481.5,2.4444]
[1718331232907,7.0536483,3482.6,3481.6,0.05743258]
[1718331233110,7.0536483,3482.6,3481.7,0.56500207]
[1718331233384,7.0536483,3482.6,3481.8,0.05743259]
[1718331233650,7.0536483,3482.6,3481.8,0.15307624]
[1718331234239,7.0536483,3482.6,3481.5,2.4444]
[1718331234448,9.4742483,3482.6,3481.9,0.15278485]
[1718331234753,5.13880997,3482.5,3481.1,2.4238]
[1718331235045,5.13880997,3482.5,3482.0,0.15085157]
[1718331235270,5.13880997,3482.5,3481.1,2.4238]
[1718331235411,1.617,3482.3,3481.1,2.4238]
[1718331235754,1.43344514,3482.2,3481.1,2.4238]
[1718331235954,4.43344514,3482.2,3481.1,2.4238]
[1718331236460,1.43344514,3482.2,3481.2,0.15119223]
[1718331236765,1.43344514,3482.2,3481.1,2.4238]
[1718331236948,0.6056451,3482.1,3481.1,2.4238]
[1718331237259,2.3548,3482.0,3480.3,2.4825]
[1718331237461,5.3548,3482.0,3480.4,1.98344514]
[1718331237661,5.3548,3482.0,3480.4,2.13497818]
[1718331239664,5.3548,3482.0,3480.5,2.4914]
[1718331239883,2.3548,3482.0,3480.6,1.89608296]
[1718331240163,3.0,3482.1,3480.8,2.4914]
[1718331240393,1.43344514,3482.2,3480.9,0.05744711]
[1718331240694,2.345,3481.6,3480.9,0.15132002]
[1718331240842,1.43344514,3481.5,3480.9,0.15132002]
[1718331241027,0.53954451,3481.4,3479.6,2.4914]
[1718331241226,1.43344514,3481.3,3479.7,0.15183138]
[1718331242173,0.53954451,3481.4,3479.8,0.05746558]
[1718331242403,1.97298965,3481.4,3479.9,0.15225235]
[1718331242546,1.97298965,3481.4,3479.9,0.5808918]
[1718331243070,1.97298965,3481.4,3480.0,0.05746185]
[1718331243446,1.97298965,3481.4,3480.1,0.15225457]
[1718331243761,1.97298965,3481.4,3480.2,0.05746093]
[1718331243962,2.16524411,3481.3,3480.3,2.51915093]
[1718331244266,2.16524411,3481.3,3480.3,2.367]
[1718331244267,5.16524411,3481.3,3480.3,2.367]
[1718331246468,6.78224411,3481.3,3479.9,2.91143945]
[1718331246834,6.78224411,3481.3,3479.9,2.4828]
[1718331247748,6.78224411,3481.3,3479.9,2.3388]
[1718331247942,3.73179897,3481.3,3480.0,0.05746555]
[1718331248148,3.0,3481.2,3480.0,0.21029195]
[1718331248374,0.53954451,3481.4,3480.0,0.1248264]
[1718331249089,0.53954451,3481.4,3480.1,0.05745977]
[1718331249591,0.53954451,3481.4,3480.2,0.15183545]
[1718331249961,0.53954451,3481.4,3479.9,2.3388]
[1718331250168,3.0,3481.6,3480.3,0.15179284]
[1718331250370,3.0,3481.6,3480.0,0.29133976]
[1718331250371,3.0,3481.6,3480.4,0.05745268]
[1718331250544,7.0536483,3481.7,3480.5,1.64255592]
[1718331250894,7.0536483,3481.7,3480.6,2.3968]
[1718331251294,7.0536483,3481.7,3480.7,0.55550735]
[1718331252981,7.0536483,3481.7,3480.8,0.05744839]
[1718331253228,7.0536483,3481.7,3480.8,0.20895913]
[1718331253581,7.0536483,3482.0,3480.8,0.20895913]
[1718331253781,7.0536483,3482.3,3481.1,1.617]
[1718331253987,7.0536483,3482.3,3481.3,2.4973]
[1718331254235,7.0536483,3482.6,3481.4,0.20843229]
[1718331256412,7.0536483,3482.6,3481.4,0.15099742]
[1718331259549,2.4925,3482.5,3481.4,0.15099742]
[1718331259853,2.4925,3482.5,3481.3,2.4973]
[1718331259987,0.39259451,3482.4,3481.3,2.4973]
[1718331260819,0.39259451,3482.4,3481.4,0.05744141]
[1718331261007,1.43344514,3482.6,3481.4,0.05744141]
[1718331261409,1.43344514,3482.6,3481.3,2.4973]
[1718331261717,1.43344514,3482.6,3481.4,0.05744139]
[1718331263023,10.0536483,3482.9,3481.4,0.05744139]
[1718331263200,1.43344514,3482.8,3481.4,0.05744139]
[1718331263405,2.11163965,3482.8,3481.5,0.41717414]
[1718331263613,2.11163965,3482.8,3481.6,0.05743707]
[1718331263913,0.67819451,3482.8,3481.6,0.05743707]
[1718331264109,3.0,3483.1,3481.6,0.05743707]
[1718331264437,1.43344514,3483.0,3481.6,0.05743707]
[1718331266062,1.43344514,3483.0,3481.7,0.14992636]
[1718331266319,1.43344514,3483.0,3481.8,0.05743369]
[1718331266524,1.43344514,3483.0,3481.9,2.3565]
[1718331266700,2.74385448,3483.0,3481.9,2.3565]
[1718331267288,3.0,3483.1,3482.0,0.05743402]
[1718331267711,3.0,3483.1,3482.1,0.14975606]
[1718331267915,3.0,3483.1,3482.2,0.05742625]
[1718331268130,3.0,3483.1,3482.3,0.05742626]
[1718331268428,7.0536483,3483.2,3482.3,0.05742626]
[1718331268617,7.0536483,3483.2,3482.4,0.14962837]
[1718331268814,7.0536483,3483.2,3482.6,2.4575]
[1718331269014,7.0536483,3483.2,3482.7,0.05742279]
[1718331269317,7.0536483,3483.2,3482.7,0.20692348]
[1718331269493,7.0536483,3483.2,3482.7,0.14950069]
[1718331272997,7.0536483,3483.2,3481.6,1.617]
[1718331272998,7.0536483,3483.2,3482.4,2.4271]
[1718331273194,7.0536483,3483.2,3482.8,0.14900284]
[1718331273440,7.0536483,3483.7,3482.4,2.4271]
[1718331273732,2.13880997,3483.6,3482.5,0.24271]
[1718331274139,7.0536483,3483.7,3482.6,0.05742624]
[1718331274337,7.0536483,3483.7,3482.5,0.24271]
[1718331274649,7.0536483,3483.7,3482.6,0.14908795]
[1718331274810,8.48709344,3483.7,3482.5,0.24271]
[1718331274995,8.48709344,3483.7,3482.4,2.4271]
[1718331277102,1.43344514,3483.6,3482.4,2.4271]
[1718331277491,2.3934,3483.5,3481.6,2.3055]
[1718331277738,1.43344514,3483.4,3481.6,3.73894514]
[1718331277941,4.43344514,3483.4,3481.7,0.14947106]
[1718331278099,0.68268451,3483.3,3481.8,0.38884162]
[1718331278301,2.11612965,3483.3,3481.8,0.38884162]
[1718331278611,2.11612965,3483.3,3481.9,0.14938591]
[1718331279241,2.11612965,3483.3,3482.0,0.05743029]
[1718331279556,3.0,3483.4,3482.0,0.05743029]
[1718331279557,3.0,3483.4,3482.1,0.14930076]
[1718331279844,3.0,3483.6,3482.2,2.42602493]
[1718331280146,1.43344514,3483.5,3482.3,0.20635509]
[1718331280345,3.0,3483.8,3482.3,0.14893047]
[1718331280521,0.83146,3483.7,3482.4,0.25175305]
[1718331280717,0.83146,3483.7,3482.5,0.05741992]
[1718331280930,3.0,3483.8,3482.5,0.20626527]
[1718331281133,2.3146,3483.9,3482.5,0.20626527]
[1718331281328,3.74804514,3483.9,3482.5,0.20626527]
[1718331281527,3.0,3484.0,3482.6,2.3743]
[1718331281791,4.43344514,3484.0,3482.7,0.05741684]
[1718331282052,1.14870934,3483.9,3482.8,0.25805622]
[1718331282359,1.14870934,3483.9,3482.8,0.31547465]
[1718331283955,1.14870934,3483.9,3482.9,0.14854638]
[1718331284162,1.14870934,3483.9,3483.0,0.05741517]
[1718331284456,1.14870934,3483.9,3482.8,0.25805622]
[1718331284656,1.12023576,3483.8,3482.9,0.14854638]
[1718331285632,3.0,3484.0,3482.9,0.14854638]
[1718331285834,3.0,3484.0,3483.0,0.05741525]
[1718331286223,3.0,3484.0,3482.8,0.25805622]
[1718331286443,3.0,3484.0,3482.9,0.14851421]
[1718331286645,3.0,3484.0,3482.8,0.25805622]
[1718331286841,3.0,3484.0,3482.9,0.14851421]
[1718331287059,3.0,3484.0,3482.8,0.25805622]
[1718331287363,3.0,3484.0,3482.9,0.14851421]
[1718331287857,3.0,3484.0,3482.8,0.25805622]
[1718331288160,3.0,3484.0,3482.9,0.14851421]
[1718331288519,3.0,3484.0,3482.8,0.25805622]
[1718331289067,3.0,3484.0,3482.9,0.14851421]
[1718331289365,3.0,3484.0,3482.8,0.25805622]
[1718331289769,3.0,3484.0,3482.9,0.14851421]
[1718331290064,3.0,3484.0,3482.8,0.25805622]
[1718331290246,3.0,3484.0,3482.9,0.14851421]
[1718331290565,3.0,3484.0,3482.8,0.25805622]
[1718331290737,3.0,3484.0,3483.0,0.05741536]
[1718331291344,3.0,3484.0,3483.1,2.347]
[1718331291745,3.0,3484.0,3483.1,2.61324716]
[1718331291942,7.0536483,3484.1,3483.2,0.05741535]
[1718331292171,7.0536483,3484.1,3483.1,2.61324716]
[1718331292172,7.0536483,3484.1,3483.3,0.05740861]
[1718331292390,7.0536483,3484.1,3483.3,0.32447419]
[1718331292539,7.0536483,3484.1,3483.3,0.26706558]
[1718331292738,7.0536483,3484.1,3483.4,0.05740867]
[1718331293976,7.0536483,3484.1,3483.3,0.26706558]
[1718331294471,2.4518,3484.0,3483.3,0.26706558]
[1718331294673,2.4518,3484.0,3482.8,2.4697]
[1718331294839,2.4518,3484.0,3482.9,0.14851421]
[1718331295775,1.43344514,3483.9,3482.9,0.14851421]
[1718331296271,1.43344514,3483.9,3482.4,2.2833]
[1718331296487,1.43344514,3483.9,3482.5,0.14861546]
[1718331296655,1.44352835,3483.8,3482.6,0.24319155]
[1718331300052,2.3269,3483.7,3482.6,0.24319155]
[1718331302387,3.0,3484.0,3482.8,2.3321]
[1718331302546,3.0,3484.0,3482.9,0.05741666]
[1718331303285,3.0,3484.0,3482.8,2.3321]
[1718331303609,3.0,3484.0,3482.9,0.4059744]
[1718331303889,3.0,3484.0,3482.9,0.25752916]
[1718331308862,2.856,3484.0,3482.9,0.25752916]
[1718331309063,4.28944514,3484.0,3482.9,0.25752916]
[1718331309462,4.26144514,3484.0,3482.9,0.25752916]
[1718331309673,4.26144514,3484.0,3483.0,0.25896292]
[1718331310291,4.75779429,3484.0,3483.0,0.25896292]
[1718331310456,4.75779524,3484.0,3483.0,0.25896292]
[1718331310660,3.3243501,3484.0,3483.0,0.25896292]
[1718331310982,2.828,3484.0,3483.0,0.25896292]
[1718331311300,7.0536483,3484.1,3483.2,2.4476]
[1718331311518,7.0536483,3484.1,3483.4,2.4476]
[1718331311713,7.0536483,3484.1,3483.5,0.05740297]
[1718331312000,7.0536483,3484.1,3483.6,2.4476]
[1718331312171,7.0536483,3484.1,3483.7,0.05740281]
[1718331312372,7.0536483,3484.8,3483.7,1.58137996]
[1718331312685,7.0536483,3485.2,3483.8,0.402898]
[1718331312886,7.54985881,3485.2,3483.8,0.55079029]
[1718331313058,7.0536483,3485.2,3483.8,0.55079029]
[1718331313494,7.0536483,3485.2,3483.9,0.05739713]
[1718331313704,7.0536483,3485.2,3484.0,2.4679]
[1718331313877,7.0536483,3485.2,3484.1,0.05739654]
[1718331314073,7.0536483,3485.2,3484.1,0.49798076]
[1718331314699,7.0536483,3485.2,3484.2,1.43344514]
[1718331314857,7.0536483,3485.2,3484.5,1.617]
[1718331315061,7.0536483,3485.7,3484.6,0.05738575]
[1718331315257,7.0536483,3485.7,3484.6,0.4692286]
[1718331316300,7.0536483,3485.7,3484.7,0.05738581]
[1718331316874,7.0536483,3485.7,3484.6,0.4692286]
[1718331317204,7.0536483,3485.7,3484.8,0.14693407]
[1718331317404,7.0536483,3485.7,3484.7,0.60238943]
[1718331317615,7.0536483,3485.7,3484.9,0.14689157]
[1718331317764,7.0536483,3485.7,3484.8,0.14693407]
[1718331317980,7.0536483,3485.7,3484.7,0.45541286]
[1718331317981,3.0,3486.0,3484.7,0.45541286]
[1718331318240,2.49246483,3485.9,3484.9,0.14689157]
[1718331318515,2.49246483,3485.9,3484.7,0.45541286]
[1718331318723,2.49246483,3485.9,3485.0,0.14684907]
[1718331318901,2.49246483,3485.9,3484.7,0.45541286]
[1718331319069,2.49246483,3485.9,3485.1,0.14680657]
[1718331319268,2.49246483,3485.9,3484.7,0.45541286]
[1718331319485,2.49246483,3485.9,3485.2,0.14676407]
[1718331319709,2.49246483,3485.9,3484.8,0.05738587]
[1718331319872,2.49246483,3485.9,3485.3,0.14672158]
[1718331320071,2.49246483,3485.9,3484.7,0.45541286]
[1718331320322,2.49246483,3485.9,3485.4,0.14583369]
[1718331320488,2.49246483,3485.9,3484.8,0.0573857]
[1718331320694,2.49246483,3485.9,3485.5,0.1457912]
[1718331321004,2.49246483,3485.9,3484.7,0.45541286]
[1718331321210,4.43344514,3486.0,3484.7,0.45541286]
[1718331321404,4.43344514,3486.0,3484.8,0.14608867]
[1718331322002,2.3673,3485.8,3484.8,0.14608867]
[1718331322206,1.43344514,3485.7,3484.8,0.14608867]
[1718331322407,1.617,3485.9,3484.4,2.4679]
[1718331322588,3.05044514,3485.9,3484.5,0.24679]
[1718331322914,3.0,3485.8,3484.5,0.39300619]
[1718331323088,1.43344514,3485.9,3484.5,0.39300619]
[1718331323297,1.43344514,3485.8,3484.5,0.39300619]
[1718331323493,1.43344514,3485.8,3484.5,0.24679]
[1718331323812,0.44334451,3485.7,3484.5,0.24679]
[1718331324379,2.3439,3485.5,3484.4,2.4679]
[1718331324578,1.43344514,3485.4,3484.4,2.4679]
[1718331324887,4.43344514,3485.4,3484.4,2.4679]
[1718331327302,4.43344514,3485.4,3483.4,4.617]
[1718331327303,1.617,3485.3,3483.8,2.3515]
[1718331327551,1.43344514,3485.2,3483.8,2.3515]
[1718331327705,4.43344514,3485.2,3483.8,2.3515]
[1718331329441,4.43344514,3485.2,3482.4,7.77342322]
[1718331329442,1.617,3484.9,3482.4,7.77342322]
[1718331329620,1.617,3484.9,3482.7,2.3184]
[1718331329621,2.13872514,3484.8,3482.7,2.3184]
[1718331329932,2.13872514,3484.8,3482.6,1.617]
[1718331329933,5.13872514,3484.8,3482.9,2.3184]
[1718331330135,5.13872514,3484.8,3483.1,2.2542]
[1718331330344,5.13872514,3484.8,3483.3,2.2542]
[1718331330704,3.70528,3484.8,3483.4,0.05740805]
[1718331330926,3.0,3485.2,3483.5,2.4268]
[1718331331139,1.43344514,3485.1,3483.7,2.4268]
[1718331331336,1.46321828,3485.1,3483.8,0.30008385]
[1718331331704,1.46321828,3485.1,3483.9,2.4268]
[1718331331904,9.34838281,3485.3,3484.1,2.4268]
[1718331331905,7.0536483,3485.3,3484.1,2.4268]
[1718331332131,7.0536483,3485.3,3484.3,2.4491]
[1718331332311,7.0536483,3485.3,3484.4,0.05739078]
[1718331332519,7.0536483,3485.3,3484.3,2.4491]
[1718331332740,7.0536483,3485.3,3484.5,0.14683176]
[1718331332921,7.0536483,3485.7,3484.3,2.4491]
[1718331333120,0.93374483,3485.6,3484.4,0.24491]
[1718331333640,3.93374483,3485.6,3484.4,0.24491]
[1718331335145,5.36718997,3485.6,3484.4,0.24491]
[1718331335314,5.36718997,3485.6,3484.3,2.4491]
[1718331335315,3.05044514,3485.5,3484.3,2.4491]
[1718331335512,3.0,3485.4,3484.3,2.4491]
[1718331335713,1.43344514,3485.3,3484.3,2.4491]
[1718331337450,3.0,3485.4,3484.3,2.4491]
[1718331337762,0.55507448,3485.3,3484.3,2.4491]
[1718331343851,1.43344514,3485.2,3484.3,2.4491]
[1718331345368,1.43344514,3485.2,3483.6,2.4372]
[1718331345659,1.43344514,3485.2,3484.4,0.14623111]
[1718331345860,1.43344514,3485.2,3484.3,2.4372]
[1718331348968,3.49618439,3485.5,3484.3,2.4372]
[1718331348969,3.0,3485.5,3484.3,2.4372]
[1718331349177,4.43344514,3485.5,3484.5,2.269]
[1718331350747,1.43344514,3485.5,3484.5,2.269]
[1718331350935,1.43344514,3485.5,3484.6,0.2269]
[1718331353069,1.43344514,3485.5,3484.7,2.4186]
[1718331357876,3.23138292,3485.5,3484.7,2.4186]
[1718331358066,3.0,3485.4,3484.7,2.4186]
[1718331358584,1.43344514,3485.3,3484.7,2.4186]
[1718331358755,1.43344514,3485.3,3483.8,2.4336]
[1718331358961,1.43344514,3485.3,3484.8,0.14596924]
[1718331359157,3.23138292,3485.3,3483.9,0.267732]
[1718331359858,1.43344514,3485.3,3483.9,0.267732]
[1718331360097,4.43344514,3485.3,3483.9,0.267732]
[1718331360279,6.90413619,3485.3,3484.0,0.2945052]
[1718331360458,5.10619841,3485.3,3484.0,0.2945052]
[1718331360779,6.90413619,3485.3,3484.0,0.2945052]
[1718331361441,3.41493778,3485.0,3483.8,2.4336]
[1718331361649,4.43344514,3484.9,3483.8,2.4336]
[1718331361846,6.23138292,3484.9,3483.8,2.4336]
[1718331362677,6.72761171,3484.9,3483.8,2.4336]
[1718331362882,0.83446117,3484.8,3483.8,2.4336]
[1718331363094,3.49622879,3484.9,3483.1,2.3306]
[1718331363258,3.0,3484.9,3483.3,2.3306]
[1718331363460,3.0,3485.1,3483.5,2.3306]
[1718331363675,3.0,3485.1,3483.7,2.3306]
[1718331363911,3.0,3485.1,3483.9,2.3306]
[1718331364201,3.0,3485.1,3484.1,2.3306]
[1718331364602,3.0,3485.1,3484.2,0.14641723]
[1718331367063,4.43344514,3485.1,3484.2,0.14641723]
[1718331367289,4.43344514,3485.1,3484.1,2.3306]
[1718331367290,1.49020312,3485.0,3484.1,2.3306]
[1718331367890,4.43344514,3485.1,3484.1,2.3306]
[1718331368899,3.0,3485.1,3484.1,2.3306]
[1718331369107,3.0,3485.1,3484.2,0.14638506]
[1718331369316,3.0,3485.1,3484.1,2.3306]
[1718331369468,3.0,3485.1,3484.2,0.23306]
[1718331370367,7.0536483,3485.2,3484.3,2.3569]
[1718331370631,7.0536483,3485.2,3484.4,2.55359539]
[1718331371237,7.0536483,3485.2,3484.6,2.4962]
[1718331371445,7.0536483,3485.6,3484.6,2.4962]
[1718331371735,7.0536483,3485.6,3484.7,2.62283519]
[1718331372535,7.0536483,3485.6,3484.9,2.4753]
[1718331373637,7.0536483,3486.0,3485.1,2.3475]
[1718331373944,3.0,3486.3,3485.3,2.3475]
[1718331374240,3.0,3486.2,3485.3,2.3475]
[1718331374640,3.0,3486.3,3485.4,0.23475]
[1718331376296,3.0,3486.3,3485.3,2.3475]
[1718331377126,1.43344514,3486.2,3485.3,2.3475]
[1718331378800,1.617,3486.0,3485.0,2.3259]
[1718331379133,3.05044514,3486.0,3485.0,2.3259]
[1718331379318,1.73848965,3485.9,3485.0,2.3259]